Workbook

Sheet Kaubaloend
K2: Kas tõsta juurdetellitavad kaubad esile? | L2: Jah
B3: Juurdetellimiseks | C3: Lao ID | D3: Nimi | E3: Kirjeldus | F3: Ühiku hind | G3: Kogus laos | H3: Kauba väärtus | I3: Juurdetellimise tase | J3: Juurdetellimise aeg päevades | K3: Juurdetellitav kogus | L3: Lõpetatud?
B4: =IFERROR((Kaubaloendi_Tabel[[#This Row],[Kogus laos]]<=Kaubaloendi_Tabel[[#This Row],[Juurdetellimise tase]])*(Kaubaloendi_Tabel[[#This Row],[Lõpetatud?]]="")*väärtEsiletõst,0) -> 1 | C4: IN0001 | D4: Kaup 1 | E4: Kirjeldus 1 | F4: 51.00 € | G4: 25 | H4: =Kaubaloendi_Tabel[[#This Row],[Ühiku hind]]*Kaubaloendi_Tabel[[#This Row],[Kogus laos]] -> 1,275.00 € | I4: 29 | J4: 13 | K4: 50
B5: =IFERROR((Kaubaloendi_Tabel[[#This Row],[Kogus laos]]<=Kaubaloendi_Tabel[[#This Row],[Juurdetellimise tase]])*(Kaubaloendi_Tabel[[#This Row],[Lõpetatud?]]="")*väärtEsiletõst,0) -> 1 | C5: IN0002 | D5: Üksus 2 | E5: Kirjeldus 2 | F5: 93.00 € | G5: 132 | H5: =Kaubaloendi_Tabel[[#This Row],[Ühiku hind]]*Kaubaloendi_Tabel[[#This Row],[Kogus laos]] -> 12,276.00 € | I5: 231 | J5: 4 | K5: 50
B6: =IFERROR((Kaubaloendi_Tabel[[#This Row],[Kogus laos]]<=Kaubaloendi_Tabel[[#This Row],[Juurdetellimise tase]])*(Kaubaloendi_Tabel[[#This Row],[Lõpetatud?]]="")*väärtEsiletõst,0) -> 0 | C6: IN0003 | D6: Tooteartikkel 3 | E6: Kirjeldus 3 | F6: 57.00 € | G6: 151 | H6: =Kaubaloendi_Tabel[[#This Row],[Ühiku hind]]*Kaubaloendi_Tabel[[#This Row],[Kogus laos]] -> 8,607.00 € | I6: 114 | J6: 11 | K6: 150
B7: =IFERROR((Kaubaloendi_Tabel[[#This Row],[Kogus laos]]<=Kaubaloendi_Tabel[[#This Row],[Juurdetellimise tase]])*(Kaubaloendi_Tabel[[#This Row],[Lõpetatud?]]="")*väärtEsiletõst,0) -> 0 | C7: IN0004 | D7: Tooteartikkel 4 | E7: Kirjeldus 4 | F7: 19.00 € | G7: 186 | H7: =Kaubaloendi_Tabel[[#This Row],[Ühiku hind]]*Kaubaloendi_Tabel[[#This Row],[Kogus laos]] -> 3,534.00 € | I7: 158 | J7: 6 | K7: 50
B8: =IFERROR((Kaubaloendi_Tabel[[#This Row],[Kogus laos]]<=Kaubaloendi_Tabel[[#This Row],[Juurdetellimise tase]])*(Kaubaloendi_Tabel[[#This Row],[Lõpetatud?]]="")*väärtEsiletõst,0) -> 0 | C8: IN0005 | D8: Tooteartikkel 5 | E8: Kirjeldus 5 | F8: 75.00 € | G8: 62 | H8: =Kaubaloendi_Tabel[[#This Row],[Ühiku hind]]*Kaubaloendi_Tabel[[#This Row],[Kogus laos]] -> 4,650.00 € | I8: 39 | J8: 12 | K8: 50
B9: =IFERROR((Kaubaloendi_Tabel[[#This Row],[Kogus laos]]<=Kaubaloendi_Tabel[[#This Row],[Juurdetellimise tase]])*(Kaubaloendi_Tabel[[#This Row],[Lõpetatud?]]="")*väärtEsiletõst,0) -> 1 | C9: IN0006 | D9: Tooteartikkel 6 | E9: Kirjeldus 6 | F9: 11.00 € | G9: 5 | H9: =Kaubaloendi_Tabel[[#This Row],[Ühiku hind]]*Kaubaloendi_Tabel[[#This Row],[Kogus laos]] -> 55.00 € | I9: 9 | J9: 13 | K9: 150
B10: =IFERROR((Kaubaloendi_Tabel[[#This Row],[Kogus laos]]<=Kaubaloendi_Tabel[[#This Row],[Juurdetellimise tase]])*(Kaubaloendi_Tabel[[#This Row],[Lõpetatud?]]="")*väärtEsiletõst,0) -> 0 | C10: IN0007 | D10: Kaup 7 | E10: Kirjeldus 7 | F10: 56.00 € | G10: 58 | H10: =Kaubaloendi_Tabel[[#This Row],[Ühiku hind]]*Kaubaloendi_Tabel[[#This Row],[Kogus laos]] -> 3,248.00 € | I10: 109 | J10: 7 | K10: 100 | L10: Jah
B11: =IFERROR((Kaubaloendi_Tabel[[#This Row],[Kogus laos]]<=Kaubaloendi_Tabel[[#This Row],[Juurdetellimise tase]])*(Kaubaloendi_Tabel[[#This Row],[Lõpetatud?]]="")*väärtEsiletõst,0) -> 1 | C11: IN0008 | D11: Kaup 8 | E11: Kirjeldus 8 | F11: 38.00 € | G11: 101 | H11: =Kaubaloendi_Tabel[[#This Row],[Ühiku hind]]*Kaubaloendi_Tabel[[#This Row],[Kogus laos]] -> 3,838.00 € | I11: 162 | J11: 3 | K11: 100
B12: =IFERROR((Kaubaloendi_Tabel[[#This Row],[Kogus laos]]<=Kaubaloendi_Tabel[[#This Row],[Juurdetellimise tase]])*(Kaubaloendi_Tabel[[#This Row],[Lõpetatud?]]="")*väärtEsiletõst,0) -> 0 | C12: IN0009 | D12: Kaup 9 | E12: Kirjeldus 9 | F12: 59.00 € | G12: 122 | H12: =Kaubaloendi_Tabel[[#This Row],[Ühiku hind]]*Kaubaloendi_Tabel[[#This Row],[Kogus laos]] -> 7,198.00 € | I12: 82 | J12: 3 | K12: 150
B13: =IFERROR((Kaubaloendi_Tabel[[#This Row],[Kogus laos]]<=Kaubaloendi_Tabel[[#This Row],[Juurdetellimise tase]])*(Kaubaloendi_Tabel[[#This Row],[Lõpetatud?]]="")*väärtEsiletõst,0) -> 1 | C13: IN0010 | D13: Kaup 10 | E13: Kirjeldus 10 | F13: 50.00 € | G13: 175 | H13: =Kaubaloendi_Tabel[[#This Row],[Ühiku hind]]*Kaubaloendi_Tabel[[#This Row],[Kogus laos]] -> 8,750.00 € | I13: 283 | J13: 8 | K13: 150
B14: =IFERROR((Kaubaloendi_Tabel[[#This Row],[Kogus laos]]<=Kaubaloendi_Tabel[[#This Row],[Juurdetellimise tase]])*(Kaubaloendi_Tabel[[#This Row],[Lõpetatud?]]="")*väärtEsiletõst,0) -> 1 | C14: IN0011 | D14: Kaup 11 | E14: Kirjeldus 11 | F14: 59.00 € | G14: 176 | H14: =Kaubaloendi_Tabel[[#This Row],[Ühiku hind]]*Kaubaloendi_Tabel[[#This Row],[Kogus laos]] -> 10,384.00 € | I14: 229 | J14: 1 | K14: 100
B15: =IFERROR((Kaubaloendi_Tabel[[#This Row],[Kogus laos]]<=Kaubaloendi_Tabel[[#This Row],[Juurdetellimise tase]])*(Kaubaloendi_Tabel[[#This Row],[Lõpetatud?]]="")*väärtEsiletõst,0) -> 1 | C15: IN0012 | D15: Kaup 12 | E15: Kirjeldus 12 | F15: 18.00 € | G15: 22 | H15: =Kaubaloendi_Tabel[[#This Row],[Ühiku hind]]*Kaubaloendi_Tabel[[#This Row],[Kogus laos]] -> 396.00 € | I15: 36 | J15: 12 | K15: 50
B16: =IFERROR((Kaubaloendi_Tabel[[#This Row],[Kogus laos]]<=Kaubaloendi_Tabel[[#This Row],[Juurdetellimise tase]])*(Kaubaloendi_Tabel[[#This Row],[Lõpetatud?]]="")*väärtEsiletõst,0) -> 1 | C16: IN0013 | D16: Kaup 13 | E16: Kirjeldus 13 | F16: 26.00 € | G16: 72 | H16: =Kaubaloendi_Tabel[[#This Row],[Ühiku hind]]*Kaubaloendi_Tabel[[#This Row],[Kogus laos]] -> 1,872.00 € | I16: 102 | J16: 9 | K16: 100
B17: =IFERROR((Kaubaloendi_Tabel[[#This Row],[Kogus laos]]<=Kaubaloendi_Tabel[[#This Row],[Juurdetellimise tase]])*(Kaubaloendi_Tabel[[#This Row],[Lõpetatud?]]="")*väärtEsiletõst,0) -> 1 | C17: IN0014 | D17: Kaup 14 | E17: Kirjeldus 14 | F17: 42.00 € | G17: 62 | H17: =Kaubaloendi_Tabel[[#This Row],[Ühiku hind]]*Kaubaloendi_Tabel[[#This Row],[Kogus laos]] -> 2,604.00 € | I17: 83 | J17: 2 | K17: 100
B18: =IFERROR((Kaubaloendi_Tabel[[#This Row],[Kogus laos]]<=Kaubaloendi_Tabel[[#This Row],[Juurdetellimise tase]])*(Kaubaloendi_Tabel[[#This Row],[Lõpetatud?]]="")*väärtEsiletõst,0) -> 0 | C18: IN0015 | D18: Kaup 15 | E18: Kirjeldus 15 | F18: 32.00 € | G18: 46 | H18: =Kaubaloendi_Tabel[[#This Row],[Ühiku hind]]*Kaubaloendi_Tabel[[#This Row],[Kogus laos]] -> 1,472.00 € | I18: 23 | J18: 15 | K18: 50
B19: =IFERROR((Kaubaloendi_Tabel[[#This Row],[Kogus laos]]<=Kaubaloendi_Tabel[[#This Row],[Juurdetellimise tase]])*(Kaubaloendi_Tabel[[#This Row],[Lõpetatud?]]="")*väärtEsiletõst,0) -> 1 | C19: IN0016 | D19: Kaup 16 | E19: Kirjeldus 16 | F19: 90.00 € | G19: 96 | H19: =Kaubaloendi_Tabel[[#This Row],[Ühiku hind]]*Kaubaloendi_Tabel[[#This Row],[Kogus laos]] -> 8,640.00 € | I19: 180 | J19: 3 | K19: 50
B20: =IFERROR((Kaubaloendi_Tabel[[#This Row],[Kogus laos]]<=Kaubaloendi_Tabel[[#This Row],[Juurdetellimise tase]])*(Kaubaloendi_Tabel[[#This Row],[Lõpetatud?]]="")*väärtEsiletõst,0) -> 0 | C20: IN0017 | D20: Kaup 17 | E20: Kirjeldus 17 | F20: 97.00 € | G20: 57 | H20: =Kaubaloendi_Tabel[[#This Row],[Ühiku hind]]*Kaubaloendi_Tabel[[#This Row],[Kogus laos]] -> 5,529.00 € | I20: 98 | J20: 12 | K20: 50 | L20: Jah
B21: =IFERROR((Kaubaloendi_Tabel[[#This Row],[Kogus laos]]<=Kaubaloendi_Tabel[[#This Row],[Juurdetellimise tase]])*(Kaubaloendi_Tabel[[#This Row],[Lõpetatud?]]="")*väärtEsiletõst,0) -> 1 | C21: IN0018 | D21: Kaup 18 | E21: Kirjeldus 18 | F21: 12.00 € | G21: 6 | H21: =Kaubaloendi_Tabel[[#This Row],[Ühiku hind]]*Kaubaloendi_Tabel[[#This Row],[Kogus laos]] -> 72.00 € | I21: 7 | J21: 13 | K21: 50
B22: =IFERROR((Kaubaloendi_Tabel[[#This Row],[Kogus laos]]<=Kaubaloendi_Tabel[[#This Row],[Juurdetellimise tase]])*(Kaubaloendi_Tabel[[#This Row],[Lõpetatud?]]="")*väärtEsiletõst,0) -> 1 | C22: IN0019 | D22: Kaup 19 | E22: Kirjeldus 19 | F22: 82.00 € | G22: 143 | H22: =Kaubaloendi_Tabel[[#This Row],[Ühiku hind]]*Kaubaloendi_Tabel[[#This Row],[Kogus laos]] -> 11,726.00 € | I22: 164 | J22: 12 | K22: 150
B23: =IFERROR((Kaubaloendi_Tabel[[#This Row],[Kogus laos]]<=Kaubaloendi_Tabel[[#This Row],[Juurdetellimise tase]])*(Kaubaloendi_Tabel[[#This Row],[Lõpetatud?]]="")*väärtEsiletõst,0) -> 0 | C23: IN0020 | D23: Kaup 20 | E23: Kirjeldus 20 | F23: 16.00 € | G23: 124 | H23: =Kaubaloendi_Tabel[[#This Row],[Ühiku hind]]*Kaubaloendi_Tabel[[#This Row],[Kogus laos]] -> 1,984.00 € | I23: 113 | J23: 14 | K23: 50
B24: =IFERROR((Kaubaloendi_Tabel[[#This Row],[Kogus laos]]<=Kaubaloendi_Tabel[[#This Row],[Juurdetellimise tase]])*(Kaubaloendi_Tabel[[#This Row],[Lõpetatud?]]="")*väärtEsiletõst,0) -> 0 | C24: IN0021 | D24: Kaup 21 | E24: Kirjeldus 21 | F24: 19.00 € | G24: 112 | H24: =Kaubaloendi_Tabel[[#This Row],[Ühiku hind]]*Kaubaloendi_Tabel[[#This Row],[Kogus laos]] -> 2,128.00 € | I24: 75 | J24: 11 | K24: 50
B25: =IFERROR((Kaubaloendi_Tabel[[#This Row],[Kogus laos]]<=Kaubaloendi_Tabel[[#This Row],[Juurdetellimise tase]])*(Kaubaloendi_Tabel[[#This Row],[Lõpetatud?]]="")*väärtEsiletõst,0) -> 0 | C25: IN0022 | D25: Kaup 22 | E25: Kirjeldus 22 | F25: 24.00 € | G25: 182 | H25: =Kaubaloendi_Tabel[[#This Row],[Ühiku hind]]*Kaubaloendi_Tabel[[#This Row],[Kogus laos]] -> 4,368.00 € | I25: 132 | J25: 15 | K25: 150
B26: =IFERROR((Kaubaloendi_Tabel[[#This Row],[Kogus laos]]<=Kaubaloendi_Tabel[[#This Row],[Juurdetellimise tase]])*(Kaubaloendi_Tabel[[#This Row],[Lõpetatud?]]="")*väärtEsiletõst,0) -> 0 | C26: IN0023 | D26: Kaup 23 | E26: Kirjeldus 23 | F26: 29.00 € | G26: 106 | H26: =Kaubaloendi_Tabel[[#This Row],[Ühiku hind]]*Kaubaloendi_Tabel[[#This Row],[Kogus laos]] -> 3,074.00 € | I26: 142 | J26: 1 | K26: 150 | L26: Jah
B27: =IFERROR((Kaubaloendi_Tabel[[#This Row],[Kogus laos]]<=Kaubaloendi_Tabel[[#This Row],[Juurdetellimise tase]])*(Kaubaloendi_Tabel[[#This Row],[Lõpetatud?]]="")*väärtEsiletõst,0) -> 0 | C27: IN0024 | D27: Kaup 24 | E27: Kirjeldus 24 | F27: 75.00 € | G27: 173 | H27: =Kaubaloendi_Tabel[[#This Row],[Ühiku hind]]*Kaubaloendi_Tabel[[#This Row],[Kogus laos]] -> 12,975.00 € | I27: 127 | J27: 9 | K27: 100
B28: =IFERROR((Kaubaloendi_Tabel[[#This Row],[Kogus laos]]<=Kaubaloendi_Tabel[[#This Row],[Juurdetellimise tase]])*(Kaubaloendi_Tabel[[#This Row],[Lõpetatud?]]="")*väärtEsiletõst,0) -> 0 | C28: IN0025 | D28: Kaup 25 | E28: Kirjeldus 25 | F28: 14.00 € | G28: 28 | H28: =Kaubaloendi_Tabel[[#This Row],[Ühiku hind]]*Kaubaloendi_Tabel[[#This Row],[Kogus laos]] -> 392.00 € | I28: 21 | J28: 8 | K28: 50
